Cogmind - Beta 15 @@@ ROGUE MODE // 2025.07.25 @ 02:46:32 Player: Sunsh1n3 Result: Destroyed by E5-KYN(R) with Subdweller Machine Gun Performance ------------- Evolutions (0) 0 Regions Visited (3) 600 Robots Destroyed (18) 90 Value Destroyed (408) 408 Prototype IDs (0) 0 Alien Tech Used (0) 0 Bonus (0) 0 TOTAL SCORE: 1098 Bonus ------- None Cogmind --------- Core Integrity 0/250 Matter 275/300 Energy 100/100 System Corruption 0% Temperature Cool (0) Movement Walking (190) Ox1 Location -10/Subcaves Parts ------- > --- POWER (1) -------- (None) > --- PROPULSION (2) --- Aluminum Leg Aluminum Leg > --- UTILITY (2) ------ Large Storage Unit Structural Scanner > --- WEAPON (2) ------- (None) > --- INVENTORY (15) --- Light Treads Aluminum Leg Aluminum Leg Aluminum Leg Aluminum Leg Aluminum Leg Aluminum Leg Aluminum Leg Heat Sink Small Storage Unit Improved Terrain Scanner Hacking Suite Light Assault Rifle Peak State ------------ > --- POWER ------------ Light Nuclear Core > --- PROPULSION ------- Aluminum Leg Aluminum Leg > --- UTILITY ---------- Large Storage Unit Structural Scanner > --- WEAPON ----------- Grenade Launcher Mining Laser > --- INVENTORY -------- Light Treads Aluminum Leg Aluminum Leg Aluminum Leg Aluminum Leg Aluminum Leg Aluminum Leg Aluminum Leg Heat Sink Small Storage Unit Improved Terrain Scanner Hacking Suite Light Assault Rifle [Rating: 10] Favorites ----------- Power Light Nuclear Core Engine Light Ion Engine Power Core Light Nuclear Core Propulsion Light Treads Treads Light Treads Leg Aluminum Leg Utility Large Storage Unit Device Structural Scanner Storage Large Storage Unit Weapon Small Laser Energy Gun Small Laser Ballistic Gun Light Assault Rifle Launcher Grenade Launcher Special Weapon Mining Laser Build | -11 -10 -10 -10 ------- Run | Yrd Mat Min Sub Slots Evolved . | . . . . Power . | . . . . Propulsion . | . . . . Utility . | . . . . Weapon . | . . . . Parts Attached 19 | 8 10 1 . Power 2 | 1 1 . . Engine 1 | 1 . . . Core 1 | . 1 . . Reactor . | . . . . Propulsion 6 | 2 4 . . Treads 2 | 2 . . . Leg 4 | . 4 . . Wheel . | . . . . Hover . | . . . . Flight . | . . . . Utility 5 | 2 3 . . Device 3 | 1 2 . . Storage 2 | 1 1 . . Processor . | . . . . Hackware . | . . . . Protection . | . . . . Artifact . | . . . . Weapon 6 | 3 2 1 . Energy Gun 2 | 1 1 . . Energy Cannon . | . . . . Ballistic Gun 1 | 1 . . . Ballistic Cannon . | . . . . Launcher 1 | . 1 . . Special Weapon 2 | 1 . 1 . Impact Weapon . | . . . . Slashing Weapon . | . . . . Piercing Weapon . | . . . . Special Melee Weapon . | . . . . Unidentified Prototypes . | . . . . Parts Lost 9 | . 6 . 3 Power 2 | . 1 . 1 Propulsion 1 | . 1 . . Utility 1 | . 1 . . Weapon 5 | . 3 . 2 Highest Loss Streak 4 | . 4 . 3 To Critical Strikes . | . . . . Average Backups 8 | 1 9 13 13 Power . | . . . . Propulsion 4 | 1 4 8 8 Utility 2 | . 2 4 4 Weapon 1 | . 1 1 1 Tool/Special . | . . . . Unused Backups 7 | . . . 7 Power . | . . . . Propulsion 5 | . . . 5 Utility 2 | . . . 2 Weapon . | . . . . Tool/Special . | . . . . Average Slot Usage (%) 85 | . 81 97 100 Engine 4 | . 5 . . Core 9 | . 8 14 14 Treads 11 | . 16 . . Leg 15 | . 10 28 28 Device 8 | . 6 14 14 Storage 14 | . 14 14 14 Energy Gun 8 | . 11 . . Launcher 5 | . 2 14 14 Special Weapon 6 | . 4 11 14 Peak Build Rating 10 | 9 9 10 10 Average Rating 7 | 4 7 9 9 On Entrance 7 | . 9 9 10 Naked Turns . | . . . . Heaviest Build 30 | 11 29 30 30 Greatest Support 40 | 40 40 20 20 Greatest Overweight (x) 2 | . 2 1 1 Average Overweight (x) . | . . 1 1 Largest Inventory Capacity 15 | 8 15 15 15 Average Capacity 13 | 7 14 15 15 Most Carried 13 | 3 13 13 13 Average Carried 8 | 1 9 13 13 Final Capacity 15 | 8 15 15 15 Final Carried 13 | 3 13 13 13 Class Distribution -------------------- 100% | Mutant Dominant Class ---------------- Mutant | -10/Materials Mutant | -10/Mines Mutant | -10/Subcaves Resources | -11 -10 -10 -10 ----------- Run | Yrd Mat Min Sub Matter Collected 383 | 279 49 . 55 Remotely . | . . . . Salvage Created 453 | 74 379 . . Parts 38 | 10 28 . . Haulers Intercepted . | . . . . Recyclers Shooed 1 | 1 . . . Parts Field Recycled . | . . . . Retrieved Matter . | . . . . Parts Self-Destructed . | . . . . Prevented . | . . . . Kills | -11 -10 -10 -10 ------- Run | Yrd Mat Min Sub Combat Hostiles Destroyed 11 | . 11 . . Guns 7 | . 7 . . AOE 4 | . 4 . . Classes Destroyed 6 | 1 5 . . Worker 1 | . 1 . . Tunneler 3 | 3 . . . Operator 1 | . 1 . . Watcher 2 | . 2 . . Swarmer 3 | . 3 . . Grunt 8 | . 8 . . Best Kill Streak 5 | 1 5 . . Combat Bots Only 3 | . 3 . . Max Kills in Single Turn 3 | 1 3 . . Gunslinging . | . . . . Exploded 3 | . 3 . . Melee . | . . . . Uniques/NPCs Destroyed . | . . . . Combat | -11 -10 -10 -10 -------- Run | Yrd Mat Min Sub Hostile Shots Fired 124 | . 111 . 13 Missed 37 | . 32 . 5 Hits 87 | . 79 . 8 Projectile 87 | . 79 . 8 Critical Strikes 1 | . 1 . . Damage Taken 1156 | . 919 . 237 Core 269 | . 201 . 68 Absorbed by Shields . | . . . . Core Remaining (%) 100 | 100 . . . Volleys Fired 72 | 9 61 2 . Largest 2 | 2 2 1 . Hottest 140 | 60 140 100 . Shots Fired 89 | 18 69 2 . Gun 79 | 18 61 . . Cannon . | . . . . Launcher 5 | . 5 . . Special 5 | . 3 2 . Kinetic 9 | 9 . . . Thermal 75 | 9 64 2 . Explosive 5 | . 5 . . Electromagnetic . | . . . . Robot Hit Streak 5 | 3 5 . . Robot Miss Streak 5 | 4 5 . . Penetration Max . | . . . . Secondary Targets . | . . . . Shots Hit Robots 50 | 10 40 . . Core Hits 33 | 3 30 . . Critical Kills . | . . . . Critical Parts Destroyed . | . . . . Critical Strikes . | . . . . Melee Attacks . | . . . . Impact . | . . . . Slashing . | . . . . Piercing . | . . . . Sneak Attacks . | . . . . Combat Hostiles . | . . . . Follow-up Attacks . | . . . . Damage Inflicted 927 | 117 810 . . Guns 545 | 117 428 . . Cannons . | . . . . Explosions 366 | . 366 . . Melee . | . . . . Ramming 16 | . 16 . . Kinetic 41 | 41 . . . Thermal 504 | 76 428 . . Explosive 366 | . 366 . . Electromagnetic . | . . . . Impact . | . . . . Slashing . | . . . . Piercing . | . . . . Highest Corruption . | . . . . Average Corruption . | . . . . Corruption Purged . | . . . . Corruption Blocked . | . . . . Overload Shots . | . . . . Overflow Damage . | . . . . Projectiles . | . . . . Explosions . | . . . . Melee . | . . . . Knockbacks . | . . . . Impact . | . . . . Kinetic . | . . . . Secondary . | . . . . Self-Inflicted Damage 15 | . 15 . . Shots 1 | . 1 . . Rammed . | . . . . Targets Rammed 3 | . 3 . . Kicked 3 | . 3 . . Crushed . | . . . . Highest Temperature 103 | 40 103 56 . Average Temperature 38 | 15 42 29 . Received Heat Transfer 480 | . 459 . 21 Siege Activations . | . . . . Martial Activations . | . . . . Shielding Activations . | . . . . Robots Disrupted . | . . . . Combat Hostiles . | . . . . Robots Corrupted . | . . . . Combat Hostiles . | . . . . Parts Fried . | . . . . Impact Corruptions . | . . . . Robots Melted . | . . . . Combat Hostiles . | . . . . Parts Melted 2 | . 2 . . Heat Transferred 1150 | 175 975 . . Parts Sabotaged . | . . . . Parts Stolen . | . . . . Parts Stripped . | . . . . Power Chain Reactions . | . . . . Alert | -11 -10 -10 -10 ------- Run | Yrd Mat Min Sub Maximum Alert Level . | . . . . Low Security (%) 100 | 100 100 100 . Level 1 . | . . . . Level 2 . | . . . . Level 3 . | . . . . Level 4 . | . . . . Level 5 . | . . . . High Security . | . . . . Max Security . | . . . . Peak Influence 134 | 5 134 42 . Initial 42 | . . 42 . Average 25 | 1 32 21 . Influence Increases 373 | 15 343 . 15 Destroy 0b10 Robot/C 220 | . 220 . . Destroy 0b10 Robot/NC 35 | 15 20 . . Destroy Leader 64 | . 64 . . Disable Machine 15 | . 15 . . Destroy Structure 24 | . 24 . . Lose Combat Pursuer 15 | . . . 15 Influence Decreases 373 | 15 233 108 17 Entered New Map 70 | . . 68 2 Time Decay 228 | 15 173 40 . Lost Part 60 | . 60 . . Lost Ally 15 | . . . 15 Squads Dispatched 3 | . 3 . . Investigation . | . . . . Extermination . | . . . . Reinforcement 3 | . 3 . . Assault . | . . . . Garrison . | . . . . Intercept . | . . . . Searches Triggered . | . . . . Construction Impeded . | . . . . Haulers Reinforced . | . . . . Active Scanning Responses . | . . . . Cargo Convoy Interrupts . | . . . . Stealth | -11 -10 -10 -10 --------- Run | Yrd Mat Min Sub Distress Signals 2 | . 2 . . Communications Jammed . | . . . . Distress Signals . | . . . . Times Spotted 43 | . 21 . 22 Peak Tracking Total 17 | . 5 . 17 Tactical Retreats 1 | . . . 1 Traps | -11 -10 -10 -10 ------- Run | Yrd Mat Min Sub Traps Triggered 1 | . . . 1 Indirectly . | . . . . Trap Hack Attempts . | . . . . Triggered . | . . . . Disarmed . | . . . . Reprogrammed . | . . . . Reused . | . . . . Traps Extracted . | . . . . Installed . | . . . . Triggered . | . . . . Machines | -11 -10 -10 -10 ---------- Run | Yrd Mat Min Sub Machines Disabled 1 | . 1 . . Max in Single Turn 1 | . 1 . . Machines Repaired . | . . . . Machines Dismantled . | . . . . Machines Sabotaged . | . . . . Overloaded Fab Kills . | . . . . Hacking | -11 -10 -10 -10 --------- Run | Yrd Mat Min Sub Machines Accessed 1 | . 1 . . Terminals 1 | . 1 . . Fabricators . | . . . . Repair Stations . | . . . . Recycling Units . | . . . . Scanalyzers . | . . . . Garrison Access . | . . . . Total Hacks 1 | . 1 . . Successful 1 | . 1 . . Failed . | . . . . Catastrophic . | . . . . Database Lockouts . | . . . . Manual . | . . . . Terminals 1 | . 1 . . Fabricators . | . . . . Repair Stations . | . . . . Recycling Units . | . . . . Scanalyzers . | . . . . Garrison Access . | . . . . Terminal Hacks 1 | . 1 . . Branch Access Points 1 | . 1 . . Fabricator Hacks . | . . . . Repair Station Hacks . | . . . . Recycling Unit Hacks . | . . . . Scanalyzer . | . . . . Garrison Access Hacks . | . . . . Unauthorized Hacks . | . . . . Terminals . | . . . . Fabricators . | . . . . Repair Stations . | . . . . Recycling Units . | . . . . Scanalyzers . | . . . . Garrison Access . | . . . . Data Cores Recovered . | . . . . Used . | . . . . Hacking Detections 1 | . 1 . . Full Trace Events . | . . . . Feedback Events . | . . . . Feedback Blocked . | . . . . Robot Schematics Acquired . | . . . . Robots Built . | . . . . Authchips . | . . . . Time . | . . . . Total Robot Build Rating . | . . . . Part Schematics Acquired . | . . . . Parts Built . | . . . . Authchips . | . . . . Time . | . . . . Total Part Build Rating . | . . . . Parts Repaired . | . . . . Time . | . . . . Parts Recycled . | . . . . Recycled Matter . | . . . . Retrieved Matter . | . . . . Retrieved Components . | . . . . Parts Scanalyzed . | . . . . Part Schematics Acquired . | . . . . Parts Damaged . | . . . . Bothacking | -11 -10 -10 -10 ------------ Run | Yrd Mat Min Sub Used RIF Installer . | . . . . Robots Hacked . | . . . . Non-combat . | . . . . Combat . | . . . . Robot Hacks Applied . | . . . . Relay Couplers Released . | . . . . Fabnet Peak Effective % . | . . . . Robots Rewired . | . . . . Allies Hacked . | . . . . Hacks Repelled . | . . . . Allies | -11 -10 -10 -10 -------- Run | Yrd Mat Min Sub Total Allies 3 | . . 3 . Largest Group 3 | . . 3 3 Highest-Rated Group 73 | . . 73 73 Highest-Rated Ally 31 | . . 31 31 Total Orders . | . . . . Ally Attacks 15 | . . . 15 Total Damage 231 | . . . 231 Kills . | . . . . Allies Corrupted . | . . . . Allies Melted . | . . . . Intel | -11 -10 -10 -10 ------- Run | Yrd Mat Min Sub Active Infowar (turns) 510 | 17 286 99 108 Sensors 205 | . 205 . . Terrain 65 | 17 48 . . Structural 240 | . 33 99 108 Robot Analysis Total . | . . . . Derelict Logs Recovered 1 | . . 1 . Drone Launches . | . . . . Drone Recoveries . | . . . . Exploration | -11 -10 -10 -10 ------------- Run | Yrd Mat Min Sub Turns Passed 1012 | 168 637 99 108 Spaces Moved 426 | 82 239 48 57 Core 2 | 2 . . . Treads 194 | 80 114 . . Legs 230 | . 125 48 57 Wheels . | . . . . Hover . | . . . . Flight . | . . . . Fastest Speed 50 | 50 160 190 190 Average Speed 186 | 157 194 190 190 Slowest Speed 260 | 160 260 190 190 Overloaded Moves . | . . . . Propulsion Burnouts . | . . . . Robots Hopped . | . . . . Potential Cave-ins . | . . . . Cave-ins Triggered . | . . . . Exploration Rate (%) 20 | 5 56 14 8 Regions Visited 3 Branch Regions 2 Pre-discovered Areas . | . . . . Known Exits Taken 1 | . 1 . . Unknown Exits Taken 2 | 1 . 1 . Scrap Searched . | . . . . Spaces Dug . | . . . . Terrain Destroyed 29 | . 28 1 . Melee . | . . . . Projectile 3 | . 2 1 . AOE 26 | . 26 . . Terrain Rammed . | . . . . Walls Destroyed . | . . . . Machines Disabled . | . . . . Actions | -11 -10 -10 -10 --------- Run | Yrd Mat Min Sub Total 539 | 102 330 50 57 Wait 7 | . 7 . . Move 423 | 81 238 47 57 Hop . | . . . . Pick Up 12 | 3 9 . . Fast Attach 12 | 7 4 1 . Attach 4 | 1 3 . . Detach 3 | 1 2 . . Swap 3 | . 3 . . Drop . | . . . . Fire 72 | 9 61 2 . Melee . | . . . . Ram . | . . . . Kick 3 | . 3 . . Crush . | . . . . Escape Stasis . | . . . . Rewire . | . . . . Trap . | . . . . Miscellaneous . | . . . . Route ------- -11/Scrapyard -10/Materials -10/Mines -10/Subcaves (discovered 1 exit: [*Rec]) History --------- Turn | Location | Event 6 | -11/Scrapyard | Discovered new exit (range 15) 169 | -11/Scrapyard | Entered Materials 314 | -10/Materials | Build established: Mutant 440 | -10/Materials | Core integrity fell below 50% 453 | -10/Materials | Lost 4 parts (1p1n1u1w) 598 | -10/Materials | Identified exit to Mines 677 | -10/Materials | Core integrity fell below 20% 806 | -10/Materials | Entered Mines 809 | -10/Mines | Received a Mining Laser from a helpful Derelict 861 | -10/Mines | Learned 2 Materials zone layouts 869 | -10/Mines | Discovered new exit (range 9) 905 | -10/Mines | Entered Subcaves 905 | -10/Subcaves | Accompanied by 3 allies 910 | -10/Subcaves | Led the pair of lost Derelicts to an unsafe place 1008 | -10/Subcaves | Discovered new exit (range 12) 1010 | -10/Subcaves | Ambushed by swarm of Subdwellers 1010 | -10/Subcaves | Ambushed by Subdwellers from Twisted Machinery 1010 | -10/Subcaves | Ambushed by Subdwellers from Twisted Machinery 1010 | -10/Subcaves | Ambushed by Subdwellers from Twisted Machinery 1010 | -10/Subcaves | Ambushed by Subdwellers from Twisted Machinery 1010 | -10/Subcaves | Ambushed by Subdwellers from Twisted Machinery 1010 | -10/Subcaves | Ambushed by Subdwellers from Twisted Machinery 1013 | -10/Subcaves | Destroyed by E5-KYN(R) with Subdweller Machine Gun Last Messages --------------- 01010_ Lgt. Nuclear Core destroyed. 01010_ ZI-F1Q(R) destroyed. 01010_ YN-Q73(R) angrily emerges from the Twisted Machinery. 01010_ G8-T4E(R) angrily emerges from the Twisted Machinery. 01010_ YZ-3U4(R) angrily emerges from the Twisted Machinery. 01010_ X6-FZ0(R) angrily emerges from the Twisted Machinery. 01010_ SI-RHS(R) angrily emerges from the Twisted Machinery. 01010_ 8E-2IE(R) angrily emerges from the Twisted Machinery. 01010_ S-10 Pest destroyed. 01010_ Mining Laser destroyed. 01010_ Grenade Launcher destroyed. 01011_ EV-C78(R) knocked back. 01011_ KZ-JDP(g) destroyed. 01012_ 6T-KBZ(g) destroyed. Map ----- +----------------------------------------------------+ | ### ####### ####????????????????????????????????? | | ## ###### ##????????????????????????????????? | | ### # ##????????????????????????????????? | | ## ##????????????????????????????????? | | ## #### # ##????????????????????????????????? | | ########### ##????????????????????????????????? | | ?###?####### #####?????????????????????????????? | | ?????????## #####?????????????????????????????? | | ?????????### ##?????????????????????????????? | | ?????????#### ###????????????????????????????? | | ??????????### ####???????????????????????????? | | ???????????##### #######???????????????????????? | | ???????????#### #######??????????????????????? | | ?????????????#### # ####?????????????????????? | | ?????????????#### ###?????????????????????? | | ???????????????### ##?????????????????????? | | ???????????????### ###?????????????????????? | | ????????????????####### ##?????????????????????? | | ????????????????###### h ###?????????????????????? | | ????????????????????###R ###?????????????????????? | | ???????????????????####RRR##?????????????????????? | | ????????????##"????"##% ###????????????????????? | | ????????????##" ?? #;;RR ###????????????????????? | | ????????????##" #;RRR;R#########?????????????? | | ???????????###""t ss= !RR;## # # # ?????????????? | | ???????????##< %* @ $ ????????? | | ???????????###""t [ ????????? | | ???????????###" s# ;;; # ## # ## ?????????? | | ????????????##" ###### ############?????????? | | ????????????##""" "####### ##??????????????????? | | ????????????#######??????### ?????????????????? | | ????????????#######???????## # ?????????????????? | | ???????????????????????????? ###?????????????????? | | ????????????????????????????####?????????????????? | | ?????????????????????????????????????????????????? | | ?????????????????????????????????????????????????? | | ?????????????????????????????????????????????????? | | ?????????????????????????????????????????????????? | | ?????????????????????????????????????????????????? | | ?????????????????????????????????????????????????? | | ?????????????????????????????????????????????????? | | ?????????????????????????????????????????????????? | | ?????????????????????????????????????????????????? | | ?????????????????????????????????????????????????? | | ?????????????????????????????????????????????????? | | ?????????????????????????????????????????????????? | | ?????????????????????????????????????????????????? | | ?????????????????????????????????????????????????? | | ?????????????????????????????????????????????????? | | ?????????????????????????????????????????????????? | +----------------------------------------------------+ Best States ------------- Heat Dissipation 25 Energy Generation 14 Energy Capacity 160 Matter Stores 300 Matter Capacity 300 Sight Range 16 Robot Scan Range 14 Terrain Scan Range 16 Terrain Scan Density 10 Evasion (%) 40 Recoil Reduction 2 Item Schematics ----------------- None Robot Schematics ------------------ None Fabricated ------------ Nothing Repaired ---------- Nothing Alien Tech Used ----------------- None Achievements -------------- None Challenges ------------ None Game ------ Seed MasterHypervelocityLauncher Manual? 0 Play Time 00:09:59 Cumulative 18.5 hours Start 2025.07.25 @ 02:37:48 End 2025.07.25 @ 02:46:32 Sessions 1 Manual Loads 0 Difficulty Rogue Special Mode None Game No. 41 Rogue 41 Adventurer 0 Explorer 0 Win Type - Total 0 Types 0/0/0/0/0/0/0/0/0/0 Lore% 10 Gallery% 20 Achievement% 17 Wizard Run 0 Options --------- Layout 1 ASCII 0 Keyboard 1 Movement Numpad Keybinds 0 Fullscreen 2 Font 24/Smallcaps Map View 50x35 Zoom Use 0% Tactical HUD 1 Map Filters NONE Filters NONE Steam 1 RUN: 9a5cb1f2-e3f7-486a-830f-b050f8a9e89a